bitfinex/quotes_ETHUSD_20220120
["timestamp","ask_amount","ask_price","bid_price","bid_amount"]
[1642722459249,22.71874762,3019.6,3019.5,0.00206732]
[1642722459451,0.00113685,3019.6,3019.5,0.00206732]
[1642722460679,20.56182937,3019.6,3019.5,0.00206732]
[1642722461384,0.00113685,3019.6,3019.5,0.00206732]
[1642722461580,19.37113685,3019.6,3019.5,0.00206732]
[1642722462179,19.75213685,3019.6,3019.5,0.00206732]
[1642722462582,21.87170838,3019.6,3019.5,0.00206732]
[1642722462984,22.33764838,3019.6,3019.5,0.00206732]
[1642722463383,21.03764838,3019.6,3019.5,0.00206732]
[1642722463785,1.66764838,3019.6,3019.5,0.00206732]
[1642722464182,0.38213685,3019.6,3019.5,0.00206732]
[1642722465428,0.00113685,3019.6,3019.5,0.00206732]
[1642722465828,0.00113685,3019.6,3019.5,2.75206732]
[1642722466829,0.00113685,3019.6,3019.5,1.60206732]
[1642722467029,0.00113685,3019.6,3019.5,2.81142969]
[1642722467328,0.00113685,3019.6,3019.5,0.00206732]
[1642722467930,0.00113685,3019.6,3019.5,1.60206732]
[1642722468199,0.00113685,3019.6,3019.5,4.41150246]
[1642722468994,0.00113685,3019.6,3019.5,1.60206732]
[1642722469294,0.00113685,3019.6,3019.5,0.00206732]
[1642722470100,2.22773458,3019.6,3019.5,0.00206732]
[1642722470299,2.60873458,3019.6,3019.5,0.00206732]
[1642722470497,22.27873458,3019.6,3019.5,0.00206732]
[1642722470697,23.27873458,3019.6,3019.5,0.00206732]
[1642722470896,23.27873458,3019.6,3018.6,0.00454738]
[1642722470897,19.37,3019.2,3018.6,0.00454738]
[1642722471099,20.1985086,3019.0,3018.6,0.00454738]
[1642722471301,20.1985086,3019.0,3018.1,0.0073895]
[1642722471302,19.91694,3018.9,3018.1,0.0073895]
[1642722471498,19.91694,3018.9,3018.2,2.81052953]
[1642722471918,19.91694,3018.9,3018.3,2.81678218]
[1642722472122,19.37,3018.5,3018.3,0.00625265]
[1642722472328,19.37,3018.5,3017.7,1.17132833]
[1642722472329,21.16045093,3018.5,3018.4,0.00568423]
[1642722472526,21.16045093,3018.5,3017.8,0.00909477]
[1642722472733,21.16045093,3018.5,3017.9,2.81043258]
[1642722472929,0.381,3018.4,3017.9,2.81043258]
[1642722473132,0.381,3018.4,3018.0,0.00795792]
[1642722473433,19.37,3018.3,3018.0,0.00795792]
[1642722473632,19.53594,3018.1,3018.0,0.00795792]
[1642722473833,19.53594,3018.1,3016.7,1.72007531]
[1642722473834,1.34803932,3017.5,3017.4,0.01136846]
[1642722474033,1.34803932,3017.5,3016.7,0.05]
[1642722474034,1.72903932,3017.5,3017.0,0.01364216]
[1642722474232,19.37,3017.4,3017.1,2.81127008]
[1642722474431,19.37,3017.4,3016.8,0.01477901]
[1642722474432,0.381,3017.3,3016.9,2.81127008]
[1642722474634,0.381,3017.3,3017.2,0.01250531]
[1642722474830,20.60687129,3017.3,3017.1,2.81146933]
[1642722475031,20.60687129,3017.3,3017.2,2.81146933]
[1642722475236,20.60687129,3017.3,3017.2,2.82397464]
[1642722475434,22.43069129,3017.3,3017.2,0.01250531]
[1642722475677,22.73069129,3017.3,3017.2,0.01250531]
[1642722475878,0.82913,3017.2,3016.8,0.01477901]
[1642722476181,0.82913,3017.2,3016.9,1.57811968]
[1642722476182,0.381,3017.1,3016.9,1.57811968]
[1642722476381,0.381,3017.1,3016.8,0.01477901]
[1642722476382,1.30317213,3016.9,3016.8,0.01477901]
[1642722476582,1.30317213,3016.9,3016.7,0.05]
[1642722476583,19.37,3016.8,3016.7,0.05]
[1642722476781,20.73290128,3016.8,3016.7,0.05]
[1642722476980,20.73290128,3016.8,3016.7,0.06534743]
[1642722477184,20.89884128,3016.8,3016.7,0.06534743]
[1642722477381,21.89884128,3016.8,3016.7,0.06534743]
[1642722477581,21.89884128,3016.8,3016.7,4.743e-05]
[1642722477982,21.89884128,3016.8,3016.3,0.05]
[1642722477983,3.15,3016.6,3016.3,0.05]
[1642722478183,3.06594,3016.4,3016.3,0.05]
[1642722478385,22.81694,3016.4,3016.3,0.05]
[1642722478582,22.81694,3016.4,3015.5,0.05]
[1642722478583,1.65,3016.3,3015.5,0.05]
[1642722478784,19.91694,3016.2,3015.5,0.05]
[1642722478985,0.90832882,3015.9,3015.6,0.00397897]
[1642722479187,19.91694,3016.2,3016.0,1.86206676]
[1642722479188,20.23096173,3016.2,3016.0,1.86206676]
[1642722479421,0.381,3016.1,3016.0,1.86206676]
[1642722480626,19.751,3016.1,3016.0,1.86206676]
[1642722481226,19.751,3016.1,3014.4,2.69980493]
[1642722481227,3.15,3016.0,3014.4,2.69980493]
[1642722481437,3.15,3016.0,3014.0,0.16526]
[1642722481438,3.15,3016.0,3013.7,1.65787744]
[1642722481439,0.01276777,3014.5,3013.7,1.65787744]
[1642722481631,0.01276777,3014.5,3013.5,0.618]
[1642722481632,0.69258097,3014.4,3013.5,0.618]
[1642722481829,0.01236323,3013.6,3013.5,0.618]
[1642722482031,0.39336323,3013.6,3013.5,0.0001]
[1642722482227,1.37586323,3013.6,3013.5,0.0001]
[1642722482529,1.3635,3013.6,3013.5,0.0001]
[1642722482931,19.37,3014.3,3013.5,0.0001]
[1642722482932,0.80249229,3014.3,3013.6,3.15]
[1642722483187,0.80249229,3014.3,3013.6,3.31526]
[1642722483389,0.381,3015.6,3013.7,0.01477901]
[1642722483587,19.37,3015.5,3014.7,1.43217203]
[1642722483789,19.37,3015.5,3014.1,0.01204717]
[1642722483790,0.8294566,3015.2,3014.1,0.01204717]
[1642722483985,0.8294566,3015.2,3014.8,0.00852635]
[1642722484187,1.65892,3015.1,3014.2,0.0119369]
[1642722484791,1.65892,3015.1,3014.5,1.51902349]
[1642722484991,1.6589439,3015.0,3013.9,0.01364217]
[1642722485191,3.15,3014.8,3013.5,0.0001]
[1642722485398,3.15,3014.8,3013.0,3.8149534]
[1642722485399,0.01227568,3013.6,3013.0,3.8149534]
[1642722485598,2.08098763,3013.5,3012.7,2.0]
[1642722485794,2.08098763,3013.5,3012.1,0.01276987]
[1642722485795,0.83004,3013.5,3012.1,0.01276987]
[1642722485994,0.83004,3013.5,3012.9,1.17917635]
[1642722485995,0.381,3013.5,3012.9,1.17917635]
[1642722486194,0.8296777,3014.0,3012.9,1.17917635]
[1642722486397,0.8296777,3014.0,3013.0,0.00909478]
[1642722486793,0.03659787,3014.4,3013.0,0.00909478]
[1642722487024,0.381,3014.7,3013.0,0.00909478]
[1642722487025,0.381,3014.7,3014.3,1.21471694]
[1642722487226,0.381,3014.7,3013.1,0.16526]
[1642722487526,19.751,3014.7,3013.2,0.00795793]
[1642722487925,20.5804933,3014.7,3013.2,0.00795793]
[1642722488128,21.49116915,3014.7,3013.6,0.99635608]
[1642722488324,21.49116915,3014.7,3014.2,1.47008414]
[1642722488527,20.61368746,3014.7,3014.2,1.47008414]
[1642722488724,20.61368746,3014.7,3014.3,0.00170527]
[1642722488926,21.44320746,3014.7,3014.3,0.00170527]
[1642722489126,21.44320746,3014.7,3013.7,0.00511581]
[1642722489531,0.8296283,3014.2,3013.2,0.00795793]
[1642722489733,19.37,3014.1,3013.4,1.54933644]
[1642722490133,1.75794435,3014.2,3013.5,0.00625266]
[1642722490335,0.8296283,3014.2,3013.5,0.00625266]
[1642722490535,1.6592583,3014.2,3013.5,0.00625266]
[1642722491181,0.03352165,3014.5,3013.5,0.00625266]
[1642722491384,0.00170527,3014.9,3014.4,1.16616815]
[1642722491786,0.00113685,3014.8,3014.4,1.16616815]
[1642722492184,0.381,3016.3,3014.4,1.16616815]
[1642722492185,0.00341054,3015.2,3014.4,0.01269335]
[1642722492385,0.00341054,3015.2,3014.5,0.00166843]
[1642722492586,4.212e-05,3015.1,3014.6,0.16526]
[1642722492988,0.00460004,3016.5,3014.7,0.5894996]
[1642722493187,0.00460004,3016.5,3016.3,1.36111992]
[1642722493395,1.37584,3017.6,3016.3,1.36111992]
[1642722493396,0.00403162,3016.4,3016.3,1.36111992]
[1642722493586,3.162e-05,3016.4,3016.3,3.15]
[1642722493788,3.162e-05,3016.4,3016.3,3.31526]
[1642722493990,3.162e-05,3016.4,3016.3,3.4523968]
[1642722494184,3.162e-05,3016.4,3016.3,3.2871368]
[1642722494434,3.162e-05,3016.4,3015.3,1.6575]
[1642722494435,0.16597162,3016.4,3014.5,0.1326]
[1642722494637,0.16597162,3016.4,3014.4,3.8206]
[1642722494638,1.27024067,3015.7,3014.4,3.8206]
[1642722494838,19.751,3016.3,3014.0,0.01259374]
[1642722494839,19.37,3016.3,3014.6,0.0096632]
[1642722495035,21.24574114,3016.3,3014.6,0.0096632]
[1642722495235,21.25812803,3016.3,3014.6,0.0096632]
[1642722495436,21.55812803,3016.3,3014.6,0.0096632]
[1642722495638,19.37,3016.0,3014.6,0.0096632]
[1642722495838,0.8291096,3016.1,3014.6,0.0096632]
[1642722495839,1.20680393,3015.1,3014.6,0.0096632]
[1642722496042,1.20680393,3015.1,3013.5,0.12947059]
[1642722496043,22.37,3015.0,3013.5,0.12947059]
[1642722496239,22.37682108,3015.0,3013.5,0.12947059]
[1642722496437,0.00625266,3014.9,3013.6,0.00113685]
[1642722496841,0.00568424,3014.8,3013.8,0.82924836]
[1642722497239,0.00511581,3014.7,3014.1,1.34296208]
[1642722497739,0.00454739,3014.6,3014.1,1.34296208]
[1642722497941,0.00454739,3014.6,3013.6,0.00113685]
[1642722498182,0.00397896,3014.5,3013.6,0.00113685]
[1642722498382,19.37,3014.4,3013.6,0.00113685]
[1642722498585,19.37,3014.4,3013.1,0.00397896]
[1642722498586,0.381,3014.3,3013.1,0.00397896]
[1642722498782,21.37,3014.2,3013.1,0.00397896]
[1642722498982,21.37,3014.2,3012.2,0.02154958]
[1642722498983,1.25536876,3013.4,3012.2,0.02154958]
[1642722499182,1.25536876,3013.4,3012.3,0.00852635]
[1642722499183,0.381,3013.3,3012.3,0.00852635]
[1642722499381,1.2108586,3013.3,3012.3,0.83054072]
[1642722499586,1.25031828,3013.3,3012.3,0.83054072]
[1642722499785,1.25031828,3013.3,3012.4,0.00795793]
[1642722500091,0.00170527,3014.1,3012.5,1.45874326]
[1642722500287,0.00170527,3014.1,3013.3,1.95726004]
[1642722500288,0.82967,3014.0,3013.3,1.95726004]
[1642722500489,0.83080685,3014.0,3013.3,1.95726004]
[1642722500688,0.83080685,3014.0,3013.4,0.00227369]
[1642722500689,1.66048265,3014.0,3013.4,0.00227369]
[1642722500886,0.8633219,3013.5,3013.4,0.00227369]
[1642722501093,1.66048265,3014.0,3013.4,0.00227369]
[1642722501589,2.07704937,3014.0,3013.4,0.00227369]
[1642722502236,21.44704937,3014.0,3013.4,0.00227369]
[1642722502838,1.08921826,3013.8,3013.4,0.00227369]
[1642722503040,1.91900826,3013.8,3013.4,0.00227369]
[1642722503239,2.78875478,3013.8,3013.4,0.00227369]
[1642722503440,1.6595445,3013.8,3013.4,0.00227369]
[1642722503646,2.04164725,3014.0,3013.4,0.00227369]
[1642722503647,0.00113685,3014.0,3013.4,0.00227369]
[1642722504643,0.00113685,3014.0,3013.5,1.15969427]
[1642722506075,0.00113685,3014.0,3013.4,0.00227369]
[1642722506877,1.03844529,3013.6,3013.4,0.00227369]
[1642722508377,1.41944529,3013.6,3013.4,0.00227369]
[1642722509428,0.82969,3013.8,3013.4,0.00227369]
[1642722509634,0.83074685,3014.0,3013.4,0.00227369]
[1642722510431,0.87731691,3013.9,3013.6,1.54467122]
[1642722510832,0.87731691,3013.9,3013.4,0.00227369]
[1642722512536,21.90681691,3013.9,3013.4,0.00227369]
[1642722513191,22.20681691,3013.9,3013.4,0.00227369]
[1642722513378,1.44419216,3013.7,3013.4,0.00227369]
[1642722513577,20.81419216,3013.7,3013.4,0.00227369]
[1642722513779,0.82979,3013.6,3013.4,0.00227369]
[1642722514381,0.82979,3013.6,3013.3,1.95726004]
[1642722514382,3.15,3013.4,3013.3,1.95726004]
[1642722514584,3.15,3013.3,3011.7,0.05]
[1642722514784,0.83006,3012.9,3011.8,2.81608122]
[1642722515082,0.83006,3012.9,3011.8,2.825176]
[1642722515283,0.83006,3012.9,3011.9,2.81608122]
[1642722515486,0.83006,3012.9,3011.8,0.00909478]
[1642722515487,4.18125291,3012.7,3011.8,0.00909478]
[1642722515685,1.99632902,3012.0,3011.7,0.05]
[1642722515896,22.68594,3011.8,3011.7,0.05]
[1642722516184,23.36694,3011.8,3011.7,0.0596632]
[1642722516486,23.36694,3011.8,3011.2,0.6]
[1642722516487,1.95,3011.7,3011.2,0.6]
[1642722516685,1.04185898,3011.4,3011.2,0.6]
[1642722516926,1.87236468,3011.4,3011.3,0.0022737]
[1642722517126,2.45828994,3011.4,3011.3,0.0022737]
[1642722517328,19.37,3011.3,3011.2,0.6]
[1642722517527,19.751,3011.3,3011.2,0.6]
[1642722517727,19.91694,3011.3,3011.2,0.6]
[1642722518125,21.35513997,3011.3,3011.2,0.6]
[1642722518529,21.35513997,3011.3,3010.5,0.05]
[1642722518530,1.14010682,3011.0,3010.5,0.05]
[1642722518730,19.37,3010.8,3010.5,0.05]
[1642722518930,1.52929228,3010.7,3010.6,0.00397896]
[1642722519326,1.52929228,3010.7,3010.5,0.05]
[1642722519327,2.55,3010.6,3010.5,0.05]
[1642722519531,22.301,3010.6,3010.5,0.05]
[1642722519735,19.751,3010.6,3010.5,0.05]
[1642722520033,3.3228517,3010.9,3010.6,4.12707434]
[1642722520034,0.03957516,3010.9,3010.6,4.12707434]
[1642722520231,0.381,3010.9,3010.6,4.12707434]
[1642722520432,0.00113685,3010.8,3010.6,4.12707434]
[1642722522282,0.00113685,3010.8,3010.7,3.18088567]
[1642722522479,0.00113685,3010.8,3010.7,4.69817095]
[1642722522678,0.00113685,3010.8,3010.7,7.32538797]
[1642722522879,19.37,3011.5,3010.8,0.00034207]
[1642722523081,19.37,3011.5,3010.8,2.62755909]
[1642722523278,19.37,3011.5,3010.8,0.00034207]
[1642722523279,0.00341054,3011.4,3010.8,0.00034207]
[1642722523484,1.37736,3011.3,3010.8,0.00034207]
[1642722523683,19.37,3011.2,3010.8,0.00034207]
[1642722523888,1.30204415,3011.1,3010.8,0.00034207]
[1642722524084,19.37,3010.9,3010.8,0.00034207]
[1642722524291,19.37,3010.9,3008.8,2.3878]
[1642722524292,3.15,3010.7,3008.8,2.3878]
[1642722524535,3.15,3010.7,3008.8,9.28159137]
[1642722524536,22.54236,3010.6,3008.8,9.28159137]
[1642722524735,2.85,3010.3,3008.8,6.2728]
[1642722524936,19.37,3010.1,3008.8,9.16566314]
[1642722525234,21.43615351,3010.1,3008.8,9.16566314]
[1642722525433,22.53031519,3010.1,3008.8,2.89286314]
[1642722525635,22.53031519,3010.1,3010.0,1.8187258]
[1642722525636,23.69640519,3010.1,3010.0,1.8187258]
[1642722525836,23.69640519,3010.1,3008.2,0.05]
[1642722525837,3.2,3009.9,3008.2,0.05]
[1642722526038,0.01282103,3009.4,3008.2,0.05]
[1642722526235,1.01012103,3009.4,3008.3,0.01193689]
[1642722526436,0.381,3009.3,3008.5,1.13751606]
[1642722526640,0.381,3009.3,3008.6,2.47228618]
[1642722526841,0.1328,3009.8,3008.6,2.4825178]
[1642722527036,0.1328,3009.8,3008.7,2.48194938]
[1642722527237,0.1328,3009.8,3008.8,2.47228618]
[1642722527435,0.1328,3009.8,3008.8,2.48138095]
[1642722527634,0.1328,3009.8,3009.2,1.49203083]
[1642722527838,0.96901997,3010.1,3008.9,0.00852635]
[1642722527839,0.86743969,3009.7,3008.9,0.00852635]
[1642722528197,0.86743969,3009.7,3008.6,0.01023162]
[1642722528786,20.29998743,3009.4,3008.6,0.01023162]
[1642722528986,21.13094743,3009.4,3008.6,0.01023162]
[1642722529186,21.13094743,3009.4,3008.5,0.01080004]
[1642722529187,19.751,3009.3,3008.5,0.01080004]
[1642722529391,19.37,3009.1,3008.5,0.01080004]
[1642722529790,0.8310924,3009.0,3008.5,0.01080004]
[1642722530293,0.8310924,3009.0,3008.5,1.49627235]
[1642722530490,0.03354917,3009.2,3008.5,1.49627235]
[1642722530691,0.381,3009.3,3008.6,0.01023162]
[1642722530891,0.83099,3009.4,3008.6,0.01023162]
[1642722531091,1.6619772,3009.4,3008.6,0.01023162]
[1642722531290,1.69234619,3009.4,3008.6,0.01023162]
[1642722531491,0.16609,3009.8,3009.0,1.13500984]
[1642722531492,0.83087,3009.8,3009.0,1.13500984]
[1642722531695,0.13819997,3010.1,3009.0,1.13500984]
[1642722531935,0.13819997,3010.1,3009.1,0.0073895]
[1642722532528,0.13819997,3010.1,3009.7,1.32930539]
[1642722532929,0.13819997,3010.1,3009.8,0.00341054]
[1642722533329,0.13819997,3010.1,3008.8,2.42889676]
[1642722533530,0.13819997,3010.1,3008.9,0.13799694]
[1642722533928,0.13819997,3010.1,3009.0,1.50492613]
[1642722533929,1.08029179,3009.9,3009.0,1.50492613]
[1642722534132,1.08029179,3009.9,3009.0,0.00795793]
[1642722534330,19.37,3009.8,3009.1,0.0073895]
[1642722534537,19.37,3009.8,3008.4,0.01136847]
[1642722534933,1.08029179,3009.9,3008.5,0.96884126]
[1642722535334,1.08029179,3009.9,3009.0,1.37219529]
[1642722535681,1.08029179,3009.9,3009.1,0.0073895]
[1642722535875,0.83084,3009.8,3009.1,0.0073895]
[1642722536076,23.14536966,3010.1,3009.1,0.0073895]
[1642722536077,2.63064117,3010.1,3009.1,0.0073895]
[1642722536280,0.13819997,3010.1,3009.1,0.0073895]
[1642722537090,0.13819997,3010.1,3009.7,1.54607397]
[1642722537478,0.13819997,3010.3,3009.8,0.00341054]
[1642722537682,0.30428997,3010.3,3009.8,0.00341054]
[1642722537882,0.68528997,3010.3,3009.8,0.00341054]
[1642722538079,0.68528997,3010.3,3008.9,0.00852635]
[1642722538277,0.83094,3009.8,3008.6,0.01023162]
[1642722538479,0.86592509,3009.6,3008.6,0.01023162]
[1642722538679,1.94853891,3009.6,3008.8,1.4795173]
[1642722539179,1.69686299,3009.6,3008.9,0.00852635]
[1642722540236,0.83104,3009.5,3008.9,0.00852635]
[1642722540433,0.83109,3009.3,3008.9,0.00852635]
[1642722540632,1.2121,3009.2,3008.9,0.00852635]
[1642722540833,19.37,3009.1,3008.9,0.00852635]
[1642722541032,19.37,3009.0,3008.9,0.00852635]
[1642722541633,3.26651286,3009.1,3008.9,0.00852635]
[1642722542034,1.99138771,3009.1,3008.9,0.00852635]
[1642722542237,1.95367701,3009.1,3008.9,0.00852635]
[1642722542837,21.35370245,3009.1,3008.9,0.00852635]
[1642722543037,22.18484245,3009.1,3008.9,0.00852635]
[1642722543486,1.29001055,3009.0,3008.9,0.00852635]
[1642722543792,23.68531202,3009.0,3008.9,0.00852635]
[1642722543989,3.2,3008.9,3008.2,0.05]
[1642722544190,3.2,3008.9,3008.3,0.00341054]
[1642722544191,2.0436138,3008.8,3008.3,0.00341054]
[1642722544392,2.0436138,3008.8,3008.2,0.05]
[1642722544393,3.2,3008.7,3008.2,0.05]
[1642722544593,4.19539393,3008.6,3008.2,0.05]
[1642722544797,22.94894136,3008.3,3008.2,0.05]
[1642722544992,23.32994136,3008.3,3008.2,0.05]
[1642722545192,23.79603136,3008.3,3008.2,0.05]
[1642722545393,22.59603136,3008.3,3007.7,0.6]
[1642722545591,0.84523249,3007.9,3007.7,0.6]
[1642722545792,0.84523249,3007.9,3007.8,0.00284212]
[1642722547031,20.21523249,3007.9,3007.8,0.00284212]
[1642722547829,21.21271249,3007.9,3007.8,0.00284212]
[1642722548230,21.04662249,3007.9,3007.8,0.00284212]
[1642722548935,22.51271249,3007.9,3007.8,0.00284212]
[1642722549130,22.51271249,3007.9,3007.5,0.05]
[1642722549131,4.763222,3007.8,3007.5,0.05]
[1642722549333,0.381,3007.7,3007.5,0.05]
[1642722549536,0.381,3007.7,3006.2,0.4868]
[1642722549537,0.8316722,3007.5,3006.2,0.4868]
[1642722549836,0.83171,3007.2,3006.3,0.00852635]
[1642722550039,19.37,3007.1,3006.3,0.00852635]
[1642722550236,1.66335,3007.1,3006.3,0.00852635]
[1642722550438,0.03280506,3007.2,3007.1,2.11300085]
[1642722550695,1.06434715,3007.2,3007.1,2.11300085]
[1642722550880,1.06434715,3007.2,3007.1,2.11697981]
[1642722551182,20.43434715,3007.2,3007.1,2.11697981]
[1642722551487,20.43434715,3007.2,3005.5,0.05]
[1642722551488,1.17064713,3006.8,3005.5,0.05]
[1642722551683,0.01268044,3006.3,3005.5,0.05]
[1642722551984,1.11763878,3006.0,3005.6,0.00852635]
[1642722552182,0.381,3006.2,3005.6,0.00852635]
[1642722552588,1.664,3006.0,3005.6,0.00852635]
[1642722552784,1.83009,3006.0,3005.6,0.00852635]
[1642722552983,1.664,3006.0,3005.6,0.00852635]
[1642722553190,19.37,3005.8,3005.6,0.00852635]
[1642722553388,20.97,3005.7,3005.6,0.00852635]
[1642722553587,21.96241222,3005.7,3005.6,0.00852635]
[1642722553788,1.55,3005.6,3005.3,0.79831726]
[1642722553990,22.12850222,3005.7,3005.3,0.79831726]
[1642722553991,21.68078904,3005.5,3005.3,0.63788063]
[1642722554188,19.91709,3005.4,3005.3,0.63788063]
[1642722554429,19.751,3005.4,3005.2,0.6]
[1642722554634,21.22076547,3005.4,3005.3,0.00170527]
[1642722554836,19.751,3005.4,3005.3,0.00170527]
[1642722555538,20.62081561,3005.4,3005.3,0.00170527]
[1642722555738,19.78856381,3005.4,3005.3,1.16827464]
[1642722555942,3.36326188,3006.0,3005.3,1.16827464]
[1642722556236,3.36326188,3006.0,3005.4,0.00113685]
[1642722556237,0.00170527,3005.9,3005.4,0.00113685]
[1642722556635,0.00113684,3005.8,3005.4,0.00113685]
[1642722558383,0.00113684,3005.8,3005.5,0.01202324]
[1642722558384,3.684e-05,3005.8,3005.5,0.01202324]
[1642722558584,3.684e-05,3005.8,3005.5,0.12822677]
[1642722558784,3.684e-05,3005.8,3005.6,0.10408834]
[1642722558985,0.86769072,3007.5,3005.8,0.00076316]
[1642722559389,0.00909478,3007.4,3006.9,1.17774586]
[1642722559792,0.00852636,3007.3,3006.9,1.17774586]
[1642722560190,0.00795793,3007.2,3006.9,1.17774586]
[1642722560392,0.00795793,3007.2,3007.1,4.00937939]
[1642722560589,1.11041483,3008.2,3007.1,4.00937939]
[1642722560789,1.11041483,3008.2,3007.7,1.49189813]
[1642722560790,0.16636,3008.2,3007.7,1.49189813]
[1642722560991,0.01307374,3008.1,3007.7,1.49189813]
[1642722561390,0.01250532,3008.0,3007.1,3.15]
[1642722561790,0.0119369,3007.9,3007.1,3.15]
[1642722562033,0.0119369,3007.9,3007.4,1.06573783]
[1642722562234,0.1282969,3008.2,3007.4,1.06573783]
[1642722562533,0.00113684,3008.1,3007.5,0.0022737]
[1642722562936,0.00113684,3008.1,3006.9,0.00568424]
[1642722563132,0.00113684,3008.1,3007.5,1.16979529]
[1642722563533,0.87060619,3008.1,3007.6,0.00170527]
[1642722564132,0.00113684,3008.1,3007.6,0.00170527]
[1642722564537,19.37,3008.0,3007.0,0.00511581]
[1642722564740,19.8337,3008.0,3007.0,0.00511581]
[1642722564937,19.8337,3008.0,3006.5,0.00795793]
[1642722564938,0.1637,3008.0,3006.5,0.00795793]
[1642722565140,1.00212376,3006.9,3006.5,0.00795793]
[1642722565339,1.24370799,3007.5,3006.5,0.00795793]
[1642722565340,2.38505263,3007.4,3006.5,0.00795793]
[1642722565543,0.1637,3007.5,3006.5,0.00795793]
[1642722566087,0.381,3007.7,3006.5,0.00795793]
[1642722566283,0.97533201,3007.4,3006.5,0.83937793]
[1642722566482,0.97533201,3007.4,3006.5,0.00795793]
[1642722566687,1.13903201,3007.4,3006.6,0.00738951]
[1642722566884,1.13903201,3007.4,3006.4,1.42074586]
[1642722566885,1.13903201,3007.4,3006.5,0.00795793]
[1642722566886,0.97533201,3007.4,3006.5,0.00795793]
[1642722567286,19.751,3007.7,3006.5,0.00795793]
[1642722567485,19.701,3007.7,3006.5,0.00795793]
[1642722568194,0.83260214,3008.1,3007.6,1.32231224]
[1642722568195,0.00113684,3008.1,3007.6,1.32231224]
[1642722568487,0.00113684,3008.1,3007.7,0.00113685]
[1642722571240,0.1637,3008.0,3007.0,0.00511581]
[1642722571438,0.8706725,3007.6,3006.9,0.00568424]
[1642722571637,19.5337,3008.0,3006.8,0.00625266]
[1642722571837,19.5337,3008.0,3007.0,1.44929049]
[1642722572037,19.9147,3008.0,3006.8,0.00625266]
[1642722572236,0.83143,3007.9,3007.1,0.00454739]
[1642722572436,0.83143,3007.9,3006.6,0.00738951]
[1642722572437,0.1637,3007.8,3006.6,0.00738951]
[1642722572636,19.78917614,3008.0,3006.7,1.66272]
[1642722572637,0.381,3008.0,3006.7,1.66272]
[1642722572839,0.00113684,3008.1,3006.6,0.00738951]
[1642722572840,0.00113684,3008.1,3006.8,1.67522411]
[1642722573036,0.00113684,3008.1,3007.2,0.90489566]
[1642722573282,0.00113684,3008.1,3006.9,0.00568424]
[1642722573492,0.00113684,3008.1,3007.3,0.00341054]
[1642722573686,0.00113684,3008.1,3007.4,1.20254902]
[1642722573687,0.16483684,3008.1,3007.4,1.20254902]
[1642722573887,0.16483684,3008.1,3006.9,1.59695508]
[1642722573888,0.16483684,3008.1,3006.9,0.00568424]
[1642722574087,0.16483684,3008.1,3007.5,0.0022737]
[1642722574288,0.16483684,3008.1,3006.9,0.00568424]
[1642722574487,20.2014462,3008.0,3006.9,0.00568424]
[1642722574687,1.0,3007.9,3006.9,0.00568424]
[1642722574889,1.0,3007.9,3006.6,1.66268]
[1642722574890,21.46306928,3007.9,3006.8,1.19081863]
[1642722575289,1.04850502,3007.1,3006.9,0.00568424]
[1642722575789,1.04850502,3007.1,3006.0,2.49393]
[1642722575790,1.04850502,3007.1,3006.3,0.00909478]
[1642722576187,1.04850502,3007.1,3006.2,0.0096632]
[1642722576388,0.381,3007.3,3006.2,0.0096632]
[1642722576787,0.381,3007.3,3006.6,1.41642522]
[1642722577232,0.381,3007.3,3006.7,0.00682109]
[1642722577632,1.34814242,3007.3,3006.7,0.00682109]
[1642722578435,0.96714242,3007.3,3006.7,0.00682109]
[1642722579334,0.96714242,3007.3,3006.2,0.0096632]
[1642722579539,19.37,3007.2,3006.3,1.59468492]
[1642722579938,0.83153,3007.4,3006.4,0.00852636]
[1642722580143,0.99523,3007.4,3006.4,0.00852636]
[1642722580340,0.83153,3007.4,3006.4,0.00852636]
[1642722580541,0.83153,3007.4,3006.2,0.0096632]
[1642722580780,0.83153,3007.4,3006.3,1.59586612]
[1642722580982,0.83153,3007.4,3006.2,0.0096632]
[1642722581183,0.91701023,3007.3,3006.5,1.54883948]
[1642722581579,0.91701023,3007.3,3006.6,0.00738951]
[1642722582382,0.03173693,3007.4,3007.0,1.16235255]
[1642722582583,0.83256174,3008.1,3007.0,1.16235255]
[1642722582584,0.03395203,3007.9,3007.0,1.16235255]
[1642722582784,0.16483684,3008.1,3007.1,0.00454739]
[1642722583382,0.16483684,3008.1,3007.8,1.23838607]
[1642722583383,0.00113684,3008.1,3007.8,1.23838607]
[1642722584438,0.87450336,3008.4,3007.9,2.8]
[1642722584439,1.88056905,3008.0,3007.9,2.8]
[1642722584638,1.78382647,3008.0,3007.9,2.80113684]
[1642722585237,1.78382647,3008.0,3007.9,0.00113684]
[1642722585637,0.00113685,3008.3,3007.9,2.15]
[1642722586039,0.00113685,3008.3,3007.9,4.38193572]
[1642722586438,0.00113685,3008.3,3007.9,5.21301572]
[1642722586646,0.00113685,3008.3,3008.0,3.91803531]
[1642722586844,0.00113685,3008.3,3008.1,1.75763755]
[1642722586845,3.685e-05,3008.3,3008.1,1.75763755]
[1642722587142,3.685e-05,3008.3,3008.2,0.16631]
[1642722587441,3.685e-05,3008.3,3008.1,1.63694317]
[1642722587644,3.685e-05,3008.3,3008.2,2.46674317]
[1642722588484,3.685e-05,3008.3,3008.2,0.8309]
[1642722588884,3.685e-05,3008.3,3008.1,1.6629]
[1642722589889,3.685e-05,3008.3,3008.1,0.0011]
[1642722590289,3.685e-05,3008.3,3006.9,1.2112]
[1642722590290,3.685e-05,3008.3,3007.7,0.00337369]
[1642722590486,3.685e-05,3008.3,3007.0,0.00735265]
[1642722590688,1.43446497,3008.1,3007.0,1.31794531]
[1642722590887,1.43446497,3008.1,3007.0,1.31059266]
[1642722591086,1.43446497,3008.1,3007.1,0.00678423]
[1642722591286,1.43446497,3008.1,3007.1,1.66921423]
[1642722591689,0.94521674,3007.6,3007.2,0.00621581]
[1642722592136,0.94521674,3007.6,3007.1,0.00678423]
[1642722592537,1.03455008,3008.2,3007.1,0.00678423]
[1642722592936,0.20318308,3008.2,3007.1,0.00678423]
[1642722593138,0.1637,3008.2,3007.1,0.00678423]
[1642722593339,0.8313932,3008.1,3007.1,0.00678423]
[1642722593737,1.01480405,3007.4,3007.1,0.00678423]
[1642722594553,1.01480405,3007.4,3006.8,0.0084895]
[1642722594748,2.22456964,3007.3,3006.8,0.0084895]
[1642722594946,1.4287222,3007.4,3006.8,0.0084895]
[1642722594947,1.39580405,3007.4,3006.8,0.0084895]